fUST/lending_fUST_20240901
["ID","MTS","AMOUNT","RATE_DAILY","PERIOD"]
[336812084,1725186434201,-835.84,0.00030136,31]
[336812085,1725186434223,-500.0,0.00030136,31]
[336812086,1725186434244,-500.0,0.00030136,31]
[336812087,1725186434265,-520.48181989,0.00030136,31]
[336812088,1725186434286,-500.0,0.00030136,31]
[336812089,1725186434307,-503.92317938,0.00030136,31]
[336812090,1725186434329,-500.0,0.00030136,31]
[336812091,1725186434352,-500.0,0.00030136,31]
[336812092,1725186434373,-500.0,0.00030136,20]
[336812093,1725186434393,-500.0,0.00030136,31]
[336812094,1725186434416,-500.0,0.00030136,31]
[336812095,1725186434437,-500.0,0.00030136,31]
[336812096,1725186434460,-505.59845591,0.00030136,31]
[336812097,1725186434481,-500.0,0.00030136,31]
[336812098,1725186434502,-726.68,0.00030136,31]
[336812099,1725186434523,-500.0,0.00030136,31]
[336812100,1725186434543,-500.0,0.00030136,31]
[336812101,1725186434564,-500.0,0.00030136,31]
[336812102,1725186434584,-500.0,0.00030136,31]
[336812103,1725186434607,-500.0,0.00030136,31]
[336812104,1725186434628,-500.0,0.00030136,31]
[336812105,1725186434649,-500.0,0.00030136,31]
[336812106,1725186434669,-500.0,0.00030136,31]
[336812107,1725186434689,-503.55227813,0.00030136,31]
[336812108,1725186434709,-500.0,0.00030136,31]
[336812109,1725186434729,-500.0,0.00030136,31]
[336812110,1725186434750,-500.0,0.00030136,31]
[336812111,1725186434771,-500.0,0.00030136,31]
[336812112,1725186434791,-500.0,0.00030136,31]
[336812113,1725186434813,-500.0,0.00030136,31]
[336812114,1725186434834,-500.0,0.00030136,31]
[336812115,1725186434856,-500.0,0.00030136,31]
[336812116,1725186434877,-500.0,0.00030136,31]
[336812117,1725186434900,-500.0,0.00030136,31]
[336812118,1725186434920,-500.0,0.00030136,31]
[336812119,1725186434941,-500.0,0.00030136,31]
[336812120,1725186434962,-500.0,0.00030136,31]
[336812121,1725186434984,-561.55,0.00030136,31]
[336812122,1725186435005,-500.0,0.00030136,31]
[336812123,1725186435031,-500.0,0.00030136,31]
[336812124,1725186435053,-500.0,0.00030136,31]
[336812125,1725186435076,-500.0,0.00030136,31]
[336812126,1725186435099,-502.89593893,0.00030136,31]
[336812127,1725186435122,-500.0,0.00030136,7]
[336812128,1725186435148,-500.0,0.00030136,31]
[336812129,1725186435169,-502.33822911,0.00030136,31]
[336812130,1725186435191,-500.0,0.00030136,31]
[336812131,1725186435214,-500.0,0.00030136,31]
[336812132,1725186435238,-817.25,0.00030136,31]
[336812133,1725186435259,-500.0,0.00030136,31]
[336812134,1725186435281,-500.0,0.00030136,31]
[336812135,1725186435303,-500.0,0.00030136,31]
[336812136,1725186435324,-500.0,0.00030136,31]
[336812137,1725186435345,-500.0,0.00030136,31]
[336812138,1725186435368,-500.0,0.00030136,31]
[336812139,1725186435394,-500.0,0.00030136,31]
[336812140,1725186435415,-502.24439281,0.00030136,31]
[336812141,1725186435436,-500.0,0.00030136,31]
[336812142,1725186435457,-500.0,0.00030136,31]
[336812143,1725186435478,-500.0,0.00030136,31]
[336812144,1725186435500,-500.0,0.00030136,31]
[336812145,1725186435522,-500.0,0.00030136,31]
[336812146,1725186435544,-500.0,0.00030136,31]
[336812147,1725186435569,-500.0,0.00030136,31]
[336812148,1725186435591,-2460.68,0.00030136,31]
[336812149,1725186435613,-500.0,0.00030136,31]
[336812150,1725186435634,-500.66973205,0.00030136,31]
[336812151,1725186435656,-613.84,0.00030136,31]
[336812152,1725186435679,-500.0,0.00030136,31]
[336812153,1725186435700,-500.0,0.00030136,31]
[336812154,1725186435723,-500.0,0.00030136,31]
[336812155,1725186435745,-167.39830385,0.00030136,31]
[336812156,1725186435771,-502.43,0.00030136,31]
[336812157,1725186435794,-500.0,0.00030136,31]
[336812158,1725186435816,-500.0,0.00030136,31]
[336812159,1725186435839,-500.0,0.00030136,31]
[336812160,1725186435863,-672.59,0.00030136,31]
[336812161,1725186435884,-500.0,0.00030136,31]
[336812162,1725186435906,-500.0,0.00030136,31]
[336812163,1725186435927,-500.0,0.00030136,31]
[336812164,1725186435949,-642.51149288,0.00030136,31]
[336812165,1725186435971,-500.0,0.00030136,31]
[336812166,1725186435992,-500.0,0.00030136,31]
[336812167,1725186436014,-500.0,0.00030136,31]
[336812168,1725186436036,-500.0,0.00030136,31]
[336812169,1725186436060,-500.0,0.00030136,31]
[336812170,1725186436082,-493.90787111,0.00030136,31]
[336812171,1725186436104,-658.62,0.00030136,31]
[336812172,1725186436125,-500.0,0.00030136,31]
[336812173,1725186436149,-870.81,0.00030136,31]
[336812174,1725186436171,-500.0,0.00030136,31]
[336812175,1725186436193,-500.0,0.00030136,31]
[336812176,1725186436215,-503.73279641,0.00030136,31]
[336812177,1725186436237,-501.7618558,0.00030136,31]
[336812178,1725186436261,-201.88569077,0.00030136,31]
[336812179,1725186436284,-500.0,0.00030136,31]
[336812180,1725186436307,-500.0,0.00030136,31]
[336812181,1725186436330,-500.0,0.00030136,31]
[336812182,1725186436354,-614.34,0.00030136,31]
[336812183,1725186436380,-500.0,0.00030136,31]
[336812184,1725186436401,-500.0,0.00030136,31]
[336812185,1725186436423,-500.0,0.00030136,31]
[336812186,1725186436446,-1880.75,0.00030136,31]
[336812187,1725186436468,-500.0,0.00030136,31]
[336812188,1725186436491,-500.0,0.00030136,31]
[336812189,1725186436512,-500.0,0.00030136,31]
[336812190,1725186436534,-500.0,0.00030136,31]
[336812191,1725186436557,-500.0,0.00030136,31]
[336812192,1725186436581,-1009.41,0.00030136,31]
[336812193,1725186436605,-506.44536455,0.00030136,31]
[336812194,1725186436628,-506.87810962,0.00030136,31]
[336812195,1725186436650,-500.0,0.00030136,31]
[336812196,1725186436671,-503.68315282,0.00030136,31]
[336812197,1725186436692,-500.0,0.00030136,31]
[336812198,1725186436714,-562.88,0.00030136,31]
[336812199,1725186436735,-500.0,0.00030136,31]
[336812200,1725186436756,-500.0,0.00030136,2]
[336812201,1725186436778,-196.7526298,0.00030136,31]
[336812202,1725186436799,-500.0,0.00030136,31]
[336812203,1725186436820,-500.0,0.00030136,31]
[336812204,1725186436842,-1840.32,0.00030136,31]
[336812205,1725186436866,-500.0,0.00030136,31]
[336812206,1725186436888,-500.0,0.00030136,31]
[336812207,1725186436912,-504.04593311,0.00030136,31]
[336812208,1725186436937,-500.0,0.00030136,31]
[336812209,1725186436960,-500.0,0.00030136,31]
[336812210,1725186436984,-786.16,0.00030136,31]
[336812211,1725186437006,-500.0,0.00030136,31]
[336812212,1725186437030,-686.05,0.00030136,31]
[336812213,1725186437056,-503.37685167,0.00030136,31]
[336812214,1725186437079,-1246.61,0.00030136,30]
[336812215,1725186437105,-737.38,0.00030136,31]
[336812216,1725186437129,-500.0,0.00030136,31]
[336812217,1725186437154,-500.0,0.00030136,31]
[336812218,1725186437178,-500.0,0.00030136,31]
[336812219,1725186437201,-1085.1,0.00030136,31]
[336812220,1725186437226,-500.0,0.00030136,31]
[336812221,1725186437425,-500.0,0.00030136,31]
[336812222,1725186437448,-500.0,0.00030136,31]
[336812223,1725186437472,-998.35,0.00030136,31]
[336812224,1725186437494,-503.85607641,0.00030136,31]
[336812225,1725186437517,-500.0,0.00030136,31]
[336812226,1725186437540,-992.92,0.00030136,14]
[336812227,1725186437562,-2078.34,0.00030136,31]
[336812228,1725186437585,-500.0,0.00030136,31]
[336812229,1725186437609,-500.0,0.00030136,31]
[336812230,1725186437631,-537.69,0.00030136,31]
[336812231,1725186437653,-500.0,0.00030136,31]
[336812232,1725186437675,-500.0,0.00030136,31]
[336812233,1725186437696,-805.13,0.00030136,31]
[336812234,1725186437717,-500.0,0.00030136,31]
[336812235,1725186437737,-500.0,0.00030136,31]
[336812236,1725186437759,-500.0,0.00030136,31]
[336812237,1725186437781,-1468.76,0.00030136,31]
[336812238,1725186437803,-500.0,0.00030136,31]
[336812239,1725186437825,-500.0,0.00030136,31]
[336812240,1725186437848,-503.63402825,0.00030136,31]
[336812241,1725186437871,-500.0,0.00030136,31]
[336812242,1725186437893,-1057.12,0.00030136,31]
[336812243,1725186437916,-500.0,0.00030136,31]
[336812244,1725186437939,-500.03113868,0.00030136,2]
[336812245,1725186437961,-500.0,0.00030136,31]
[336812246,1725186437985,-860.78,0.00030136,7]
[336812247,1725186438008,-1084.71,0.00030136,31]
[336812248,1725186438038,-500.0,0.00030136,31]
[336812249,1725186438070,-2334.65,0.00030136,31]
[336812250,1725186438093,-500.0,0.00030136,30]
[336812251,1725186438120,-500.0,0.00030136,31]
[336812252,1725186438142,-500.0,0.00030136,31]
[336812253,1725186438166,-500.0,0.00030136,31]
[336812254,1725186438190,-500.0,0.00030136,31]
[336812255,1725186438212,-500.0,0.00030136,31]
[336812256,1725186438235,-567.52,0.00030136,31]
[336812257,1725186438258,-347.67815756,0.00030136,31]
[336812258,1725186438282,-470.89626015,0.00030136,31]
[336812259,1725186438305,-200.0,0.00030136,7]
[336812260,1725186438329,-500.0,0.00030136,7]
[336812261,1725186438352,-500.0,0.00030136,31]
[336812262,1725186438374,-500.0,0.00030136,31]
[336812263,1725186438396,-500.0,0.00030136,31]
[336812264,1725186438419,-500.0,0.00030136,31]
[336812265,1725186438441,-501.64605786,0.00030136,31]
[336812266,1725186438464,-500.0,0.00030136,31]
[336812267,1725186438489,-500.0,0.00030136,31]
[336812268,1725186438513,-630.67,0.00030136,31]
[336812269,1725186438534,-500.0,0.00030136,31]
[336812270,1725186438557,-500.0,0.00030136,31]
[336812271,1725186438580,-500.0,0.00030136,31]
[336812272,1725186438604,-500.0,0.00030136,31]
[336812273,1725186438626,-500.0,0.00030136,31]
[336812274,1725186438654,-500.0,0.00030136,31]
[336812275,1725186438677,-553.22855574,0.00030136,31]
[336812276,1725186438698,-500.0,0.00030136,31]
[336812277,1725186438720,-500.0,0.00030136,31]
[336812278,1725186438744,-500.0,0.00030136,31]
[336812279,1725186438769,-500.0,0.00030136,31]
[336812280,1725186438792,-250.93584247,0.00030136,31]
[336812281,1725186438816,-500.0,0.00030136,31]
[336812282,1725186438838,-500.0,0.00030136,31]
[336812283,1725186438861,-827.76,0.00030136,31]
[336812284,1725186438884,-500.0,0.00030136,31]
[336812285,1725186438907,-500.0,0.00030136,31]
[336812286,1725186438930,-500.0,0.00030136,31]
[336812287,1725186438953,-522.73356696,0.00030136,31]
[336812288,1725186438975,-500.0,0.00030136,31]
[336812289,1725186438998,-500.0,0.00030136,31]
[336812290,1725186439022,-500.0,0.00030136,31]
[336812291,1725186439046,-501.18459754,0.00030136,31]
[336812292,1725186439076,-500.0,0.00030136,31]
[336812293,1725186439101,-508.84601125,0.00030136,31]
[336812294,1725186439124,-500.0,0.00030136,31]
[336812295,1725186439149,-500.0,0.00030136,31]
[336812296,1725186439172,-500.0,0.00030136,31]
[336812297,1725186439198,-500.0,0.00030136,31]
[336812298,1725186439222,-500.0,0.00030136,31]
[336812299,1725186439247,-500.0,0.00030136,31]
[336812300,1725186439271,-500.0,0.00030136,31]
[336812301,1725186439295,-824.72376604,0.00030136,31]
[336812309,1725186521499,154.82069933,0.0002,2]
[336812310,1725186572176,-212.69363163,0.00025,2]
[336812311,1725186606933,3387.87355946,0.00020417,2]
[336812320,1725186632539,-3637.94445792,0.00020417,2]
[336812321,1725186632550,-275.1273999,0.00027858,2]
[336812322,1725186632560,-153.0,0.00029041,2]
[336812323,1725186632569,-176.906073,0.00029205,2]
[336812324,1725186632578,-153.0,0.00029205,2]
[336812325,1725186632588,-153.0,0.00029205,2]
[336812326,1725186632597,-153.0,0.000293,2]
[336812327,1725186632607,-153.0,0.000293,2]
[336812328,1725186632617,-207.943127,0.0002989,2]
[336812329,1725186632626,-415.886254,0.0002989,2]
[336812330,1725186632636,-207.943127,0.0002989,2]
[336812331,1725186632646,-289.3558861,0.0002989,2]
[336812332,1725186632655,-415.886254,0.0002989,2]
[336812333,1725186632665,-300.0,0.00029999,2]
[336812334,1725186632674,-24395.49636379,0.0003,2]
[336812386,1725186642216,-20534.55532421,0.0003,2]
[336812387,1725186642226,-150.0,0.0003,7]
[336812388,1725186642235,-7693.63916531,0.00030126,4]
[336812389,1725186642251,-7427.05333299,0.00030126,4]
[336812390,1725186642260,-665.91,0.00030126,3]
[336812391,1725186642269,-2520.11541638,0.00030127,4]
[336812392,1725186642278,-1518.78135528,0.00030136,11]
[336812393,1725186642287,-172.81623396,0.00030136,31]
[336812394,1725186642297,-500.0,0.00030136,31]
[336812395,1725186642306,-500.0,0.00030136,31]
[336812396,1725186642315,-501.64542158,0.00030136,31]
[336812397,1725186642325,-500.0,0.00030136,31]
[336812398,1725186642334,-500.0,0.00030136,31]
[336812399,1725186642343,-500.0,0.00030136,31]
[336812400,1725186642353,-877.4,0.00030136,31]
[336812401,1725186642363,-500.0,0.00030136,31]
[336812402,1725186642372,-500.0,0.00030136,31]
[336812403,1725186642381,-1512.06,0.00030136,31]
[336812404,1725186642390,-646.05,0.00030136,31]
[336812405,1725186642399,-546.63,0.00030136,31]
[336812406,1725186642409,-500.0,0.00030136,31]
[336812407,1725186642418,-500.0,0.00030136,31]
[336812408,1725186642427,-500.0,0.00030136,31]
[336812409,1725186642437,-501.813284,0.00030136,31]
[336812410,1725186642448,-645.61,0.00030136,31]
[336812411,1725186642460,-500.0,0.00030136,31]
[336812412,1725186642469,-181.06408415,0.00030136,31]
[336812413,1725186642478,-500.0,0.00030136,31]
[336812414,1725186642488,-500.0,0.00030136,31]
[336812415,1725186642498,-500.0,0.00030136,31]
[336812416,1725186642507,-500.0,0.00030136,31]
[336812417,1725186642516,-500.0,0.00030136,31]
[336812418,1725186642525,-500.0,0.00030136,31]
[336812419,1725186642534,-500.0,0.00030136,31]
[336812420,1725186642543,-500.0,0.00030136,31]
[336812421,1725186642552,-500.0,0.00030136,31]
[336812422,1725186642561,-500.0,0.00030136,31]
[336812423,1725186642570,-500.0,0.00030136,31]
[336812424,1725186642580,-500.0,0.00030136,31]
[336812425,1725186642589,-500.0,0.00030136,31]
[336812426,1725186642598,-500.0,0.00030136,31]
[336812427,1725186642608,-500.0,0.00030136,31]
[336812428,1725186642616,-500.0,0.00030136,31]
[336812429,1725186642626,-500.0,0.00030136,31]
[336812430,1725186642635,-500.0,0.00030136,31]
[336812431,1725186642644,-519.83491729,0.00030136,31]
[336812432,1725186642654,-500.0,0.00030136,31]
[336812433,1725186642663,-500.0,0.00030136,31]
[336812434,1725186642672,-910.19,0.00030136,31]
[336812435,1725186642681,-207.89046365,0.00030136,31]
[336812436,1725186642690,-500.0,0.00030136,31]
[336812437,1725186642699,-500.0,0.00030136,31]
[336812438,1725186642708,-1044.21,0.00030136,31]
[336812439,1725186642718,-500.0,0.00030136,31]
[336812440,1725186642727,-500.0,0.00030136,31]
[336812441,1725186642736,-500.0,0.00030136,31]
[336812442,1725186642745,-500.0,0.00030136,31]
[336812443,1725186642754,-500.0,0.00030136,31]
[336812444,1725186642763,-994.9,0.00030136,31]
[336812445,1725186642773,-500.0,0.00030136,31]
[336812446,1725186642782,-796.29,0.00030136,31]
[336812447,1725186642791,-500.0,0.00030136,31]
[336812448,1725186642801,-500.0,0.00030136,31]
[336812449,1725186642810,-500.0,0.00030136,31]
[336812450,1725186642820,-500.0,0.00030136,31]
[336812451,1725186642830,-500.0,0.00030136,31]
[336812452,1725186642839,-500.0,0.00030136,31]
[336812453,1725186642848,-500.0,0.00030136,31]
[336812454,1725186642857,-500.0,0.00030136,31]
[336812455,1725186642867,-500.0,0.00030136,31]
[336812456,1725186642876,-500.0,0.00030136,31]
[336812457,1725186642885,-500.0,0.00030136,31]
[336812458,1725186642895,-500.0,0.00030136,31]
[336812459,1725186642904,-938.2,0.00030136,31]
[336812460,1725186642915,-500.0,0.00030136,31]
[336812461,1725186642925,-500.0,0.00030136,31]
[336812462,1725186642934,-500.0,0.00030136,31]
[336812463,1725186642943,-500.0,0.00030136,31]
[336812464,1725186642952,-500.0,0.00030136,31]
[336812465,1725186642964,-500.0,0.00030136,31]
[336812466,1725186642974,-500.0,0.00030136,31]
[336812467,1725186642984,-500.0,0.00030136,31]
[336812468,1725186642993,-500.0,0.00030136,31]
[336812469,1725186643003,-500.0,0.00030136,31]
[336812470,1725186643013,-500.0,0.00030136,31]
[336812471,1725186643022,-500.0,0.00030136,31]
[336812472,1725186643031,-500.0,0.00030136,31]
[336812473,1725186643041,-979.27,0.00030136,31]
[336812475,1725186643050,-539.6581412,0.00030136,31]
[336812476,1725186643060,-633.32,0.00030136,31]
[336812477,1725186643069,-500.0,0.00030136,31]
[336812478,1725186643078,-500.0,0.00030136,31]
[336812479,1725186643088,-473.71017254,0.00030136,31]
[336812480,1725186643097,-500.0,0.00030136,31]
[336812481,1725186643106,-500.0,0.00030136,31]
[336812482,1725186643119,-755.43,0.00030136,31]
[336812483,1725186643128,-500.0,0.00030136,31]
[336812484,1725186643138,-500.0,0.00030136,31]
[336812485,1725186643147,-500.0,0.00030136,31]
[336812486,1725186643157,-500.0,0.00030136,31]
[336812487,1725186643166,-500.0,0.00030136,31]
[336812488,1725186643175,-861.25,0.00030136,31]
[336812489,1725186643185,-500.0,0.00030136,31]
[336812490,1725186643195,-551.6,0.00030136,31]
[336812491,1725186643204,-500.0,0.00030136,30]
[336812492,1725186643213,-630.93079459,0.00030136,31]
[336812493,1725186643222,-500.0,0.00030136,31]
[336812494,1725186643231,-357.55163027,0.00030136,31]
[336812495,1725186643240,-500.0,0.00030136,31]
[336812496,1725186643249,-500.0,0.00030136,31]
[336812497,1725186643264,-506.13628989,0.00030136,31]
[336812498,1725186643274,-500.0,0.00030136,31]
[336812499,1725186643283,-500.0,0.00030136,31]
[336812500,1725186643291,-348.71289404,0.00030136,31]
[336812501,1725186643300,-500.0,0.00030136,31]
[336812502,1725186643309,-500.0,0.00030136,31]
[336812503,1725186643319,-524.37575311,0.00030136,31]
[336812504,1725186643328,-792.88,0.00030136,31]
[336812505,1725186643337,-529.85447976,0.00030136,10]
[336812506,1725186643346,-500.0,0.00030136,31]
[336812507,1725186643355,-661.07,0.00030136,31]
[336812508,1725186643364,-500.0,0.00030136,31]
[336812509,1725186643373,-500.0,0.00030136,31]
[336812510,1725186643382,-500.0,0.00030136,31]
[336812511,1725186643391,-500.0,0.00030136,31]
[336812512,1725186643400,-500.0,0.00030136,31]
[336812513,1725186643409,-151.0,0.00030136,7]
[336812514,1725186643419,-791.67,0.00030136,31]
[336812515,1725186643427,-656.35,0.00030136,31]
[336812516,1725186643437,-604.47334311,0.00030136,31]
[336812517,1725186643446,-797.6,0.00030136,31]
[336812518,1725186643455,-500.0,0.00030136,31]
[336812519,1725186643464,-245.7474,0.00030136,2]
[336812520,1725186643474,-696.67,0.00030136,31]
[336812521,1725186643483,-500.0,0.00030136,31]
[336812522,1725186643492,-500.0,0.00030136,31]
[336812523,1725186643502,-500.0,0.00030136,31]
[336812524,1725186643511,-500.0,0.00030136,31]
[336812525,1725186643521,-500.0,0.00030136,31]
[336812526,1725186643531,-1410.1,0.00030136,31]
[336812531,1725186643668,-500.0,0.00030136,31]
[336812532,1725186643678,-500.0,0.00030136,31]
[336812533,1725186643689,-1532.68,0.00030136,31]
[336812534,1725186643699,-500.0,0.00030136,31]
[336812535,1725186643710,-500.0,0.00030136,31]
[336812536,1725186643719,-500.0,0.00030136,31]
[336812537,1725186643729,-500.0,0.00030136,31]
[336812538,1725186643739,-500.0,0.00030136,31]
[336812539,1725186643751,-500.0,0.00030136,31]
[336812540,1725186643762,-500.0,0.00030136,31]
[336812541,1725186643771,-151.0,0.00030136,7]
[336812542,1725186643781,-500.0,0.00030136,31]
[336812543,1725186643791,-500.0,0.00030136,31]
[336812544,1725186643801,-500.0,0.00030136,31]
[336812545,1725186643811,-500.0,0.00030136,31]
[336812546,1725186643820,-500.0,0.00030136,31]
[336812547,1725186643831,-536.85408094,0.00030136,31]
[336812548,1725186643842,-500.0,0.00030136,31]
[336812549,1725186643853,-500.0,0.00030136,31]
[336812550,1725186643864,-500.0,0.00030136,31]
[336812551,1725186643874,-522.95674367,0.00030136,31]
[336812552,1725186643884,-654.67,0.00030136,31]
[336812553,1725186643894,-500.0,0.00030136,31]
[336812554,1725186643905,-500.0,0.00030136,31]
[336812555,1725186643914,-500.0,0.00030136,31]
[336812556,1725186643924,-500.0,0.00030136,31]
[336812557,1725186643933,-500.0,0.00030136,31]
[336812558,1725186643943,-500.0,0.00030136,31]
[336812559,1725186643953,-500.0,0.00030136,31]
[336812560,1725186643964,-500.0,0.00030136,31]
[336812561,1725186643974,-500.0,0.00030136,2]
[336812562,1725186643983,-500.0,0.00030136,31]
[336812563,1725186643994,-8160.44,0.00030136,31]
[336812564,1725186644005,-500.0,0.00030136,31]
[336812565,1725186644015,-1367.84,0.00030136,31]
[336812566,1725186644024,-651.44,0.00030136,31]
[336812567,1725186644034,-500.0,0.00030136,31]
[336812568,1725186644043,-2727.04,0.00030136,31]
[336812569,1725186644052,-945.06,0.00030136,31]
[336812570,1725186644062,-504.31704732,0.00030136,31]
[336812571,1725186644071,-151.0,0.00030136,7]
[336812572,1725186644082,-500.0,0.00030136,31]
[336812573,1725186644091,-571.46998491,0.00030136,31]
[336812574,1725186644100,-500.0,0.00030136,31]
[336812575,1725186644111,-151.0,0.00030136,7]
[336812576,1725186644122,-151.0,0.00030136,7]
[336812577,1725186644132,-500.0,0.00030136,31]
[336812578,1725186644142,-699.14,0.00030136,31]
[336812579,1725186644152,-4911.12,0.00030136,31]
[336812580,1725186644162,-500.0,0.00030136,31]
[336812581,1725186644171,-153.624298,0.00030136,7]
[336812582,1725186644182,-1296.43,0.00030136,31]
[336812583,1725186644192,-500.0,0.00030136,31]
[336812584,1725186644202,-1769.46,0.00030136,31]
[336812585,1725186644211,-151.0,0.00030136,7]
[336812586,1725186644221,-500.0,0.00030136,31]
[336812587,1725186644231,-1321.49,0.00030136,31]
[336812588,1725186644241,-151.0,0.00030136,7]
[336812589,1725186644253,-1103.79,0.00030136,31]
[336812590,1725186644262,-1837.82,0.00030136,31]
[336812591,1725186644271,-870.64,0.00030136,31]
[336812592,1725186644282,-4119.06,0.00030136,31]
[336812593,1725186644291,-500.0,0.00030136,31]
[336812594,1725186644301,-151.0,0.00030136,7]
[336812595,1725186644311,-500.0,0.00030136,31]
[336812596,1725186644321,-151.0,0.00030136,7]
[336812597,1725186644330,-500.0,0.00030136,31]
[336812598,1725186644340,-504.85190653,0.00030136,31]
[336812599,1725186644349,-1021.43,0.00030136,31]
[336812600,1725186644358,-500.0,0.00030136,31]
[336812601,1725186644368,-151.0,0.00030136,7]
[336812602,1725186644378,-23521.92,0.00030136,31]
[336812603,1725186644387,-773.12,0.00030136,31]
[336812604,1725186644396,-500.0,0.00030136,31]
[336812605,1725186644406,-6266.26,0.00030136,31]
[336812606,1725186644415,-1150.08,0.00030136,31]
[336812607,1725186644424,-500.0,0.00030136,31]
[336812608,1725186644433,-500.0,0.00030136,31]
[336812609,1725186644442,-1194.68,0.00030136,31]
[336812610,1725186644451,-500.0,0.00030136,31]
[336812611,1725186644460,-500.0,0.00030136,31]
[336812612,1725186644469,-673.78,0.00030136,31]
[336812613,1725186644478,-500.0,0.00030136,31]
[336812614,1725186644488,-3752.57,0.00030136,31]
[336812615,1725186644499,-500.0,0.00030136,31]
[336812616,1725186644508,-500.0,0.00030136,31]
[336812617,1725186644517,-151.0,0.00030136,3]
[336812618,1725186644527,-500.0,0.00030136,31]
[336812619,1725186644536,-500.0,0.00030136,31]
[336812620,1725186644545,-512.69929887,0.00030136,31]
[336812621,1725186644554,-151.0,0.00030136,7]
[336812622,1725186644563,-500.0,0.00030136,31]
[336812623,1725186644573,-500.0,0.00030136,31]
[336812624,1725186644582,-1262.88,0.00030136,31]
[336812625,1725186644591,-500.0,0.00030136,31]
[336812626,1725186644600,-588.26,0.00030136,31]
[336812627,1725186644610,-500.0,0.00030136,31]
[336812628,1725186644619,-151.0,0.00030136,7]
[336812629,1725186644628,-500.0,0.00030136,31]
[336812630,1725186644637,-500.0,0.00030136,31]
[336812631,1725186644646,-3062.39,0.00030136,31]
[336812632,1725186644655,-650.66,0.00030136,31]
[336812633,1725186644664,-500.0,0.00030136,31]
[336812634,1725186644673,-500.0,0.00030136,31]
[336812635,1725186644683,-4479.11,0.00030136,31]
[336812636,1725186644692,-631.17,0.00030136,31]
[336812637,1725186644701,-5845.64,0.00030136,31]
[336812638,1725186644710,-708.2,0.00030136,31]
[336812639,1725186644719,-500.0,0.00030136,31]
[336812640,1725186644728,-500.0,0.00030136,31]
[336812641,1725186644738,-500.0,0.00030136,31]
[336812642,1725186644747,-1438.78,0.00030136,31]
[336812643,1725186644756,-500.0,0.00030136,31]
[336812644,1725186644765,-2009.87377671,0.00030136,31]
[336812645,1725186644783,-348.27622329,0.00030136,31]
[336812646,1725186644792,-151.0,0.00030136,7]
[336812647,1725186644801,-500.0,0.00030136,31]
[336812648,1725186644811,-4923.6,0.00030136,31]
[336812649,1725186644820,-500.0,0.00030136,31]
[336812650,1725186644829,-500.0,0.00030136,31]
[336812651,1725186644838,-500.0,0.00030136,31]
[336812652,1725186644847,-2296.59,0.00030136,31]
[336812653,1725186644856,-500.0,0.00030136,31]
[336812654,1725186644865,-1488.92,0.00030136,31]